fUST/lending_fUST_20250916
["ID","MTS","AMOUNT","RATE_DAILY","PERIOD"]
[385724881,1757994639068,-155.81930119,0.00021917,2]
[385724882,1757994639077,-465.75296969,0.00021917,2]
[385724883,1757994639086,-462.52038613,0.00021917,2]
[385724884,1757994639095,-179.59981203,0.00021917,3]
[385724885,1757994639104,-463.07704881,0.00021917,2]
[385724886,1757994639113,-480.0,0.00021917,2]
[385724887,1757994639122,-500.0,0.00021917,2]
[385724888,1757994639131,-500.0,0.00021917,2]
[385724889,1757994639140,-500.0,0.00021917,2]
[385724890,1757994639149,-503.04657393,0.00021917,2]
[385724891,1757994639158,-480.0,0.00021917,2]
[385724892,1757994639167,-482.89895134,0.00021917,2]
[385724893,1757994639180,-480.0,0.00021917,2]
[385724894,1757994639189,-461.76055794,0.00021917,2]
[385724895,1757994639198,-480.0,0.00021917,2]
[385724896,1757994639207,-480.0,0.00021917,2]
[385724897,1757994639216,-480.0,0.00021917,2]
[385724898,1757994639225,-501.09622338,0.00021917,2]
[385724899,1757994639234,-464.54992872,0.00021917,2]
[385724900,1757994639243,-480.0,0.00021917,2]
[385724901,1757994639253,-480.0,0.00021917,2]
[385724902,1757994639262,-480.0,0.00021917,2]
[385724903,1757994639271,-480.0,0.00021917,2]
[385724904,1757994639280,-480.0,0.00021917,2]
[385724905,1757994639290,-480.0,0.00021917,2]
[385724906,1757994639299,-480.0,0.00021917,2]
[385724907,1757994639308,-486.24179082,0.00021917,2]
[385724908,1757994639318,-483.3503301,0.00021917,2]
[385724909,1757994639327,-482.54861047,0.00021917,2]
[385724910,1757994639337,-510.28193074,0.00021917,2]
[385724911,1757994639346,-486.40794731,0.00021917,2]
[385724912,1757994639355,-484.19166232,0.00021917,2]
[385724913,1757994639364,-481.34969073,0.00021917,2]
[385724914,1757994639373,-480.0,0.00021917,2]
[385724915,1757994639386,-483.7475594,0.00021917,2]
[385724916,1757994639395,-482.84894603,0.00021917,2]
[385724917,1757994639405,-480.0,0.00021917,2]
[385724918,1757994639414,-482.2938915,0.00021917,2]
[385724919,1757994639424,-482.22440863,0.00021917,2]
[385724920,1757994639433,-482.63368206,0.00021917,2]
[385724921,1757994639443,-480.0,0.00021917,2]
[385724922,1757994639452,-480.0,0.00021917,2]
[385724923,1757994639462,-512.02354938,0.00021917,2]
[385724924,1757994639471,-480.0,0.00021917,2]
[385724925,1757994639480,-480.0,0.00021917,2]
[385724926,1757994639489,-481.61128168,0.00021917,2]
[385724927,1757994639499,-480.0,0.00021917,2]
[385724928,1757994639508,-480.0,0.00021917,2]
[385724929,1757994639517,-480.0,0.00021917,2]
[385724930,1757994639527,-371.44676225,0.00021917,2]
[385724931,1757994639538,-480.0,0.00021917,2]
[385724932,1757994639550,-480.0,0.00021917,2]
[385724933,1757994639561,-492.70515079,0.00021917,2]
[385724934,1757994639572,-483.1320794,0.00021917,2]
[385724935,1757994639583,-480.0,0.00021917,2]
[385724936,1757994639593,-500.0,0.00021917,2]
[385724937,1757994639605,-500.0,0.00021917,2]
[385724938,1757994639615,-428.53839059,0.00021917,2]
[385724939,1757994639627,-480.0,0.00021917,2]
[385724940,1757994639637,-193.11695866,0.00021917,2]
[385724941,1757994639648,-480.0,0.00021917,2]
[385724942,1757994639658,-578.42382827,0.00021917,2]
[385724943,1757994639668,-469.61158345,0.00021917,2]
[385724944,1757994639678,-485.75558223,0.00021917,2]
[385724945,1757994639689,-487.45238174,0.00021917,2]
[385724946,1757994639699,-480.0,0.00021917,2]
[385724947,1757994639709,-155.420887,0.00021917,2]
[385724948,1757994639719,-151.0,0.00021917,2]
[385724949,1757994639729,-480.0,0.00021917,2]
[385724950,1757994639739,-480.0,0.00021917,2]
[385724951,1757994639749,-158.530528,0.00021917,2]
[385724952,1757994639759,-480.0,0.00021917,2]
[385724953,1757994639771,-469.28988979,0.00021917,2]
[385724954,1757994639781,-500.0,0.00021917,2]
[385724955,1757994639791,-500.0,0.00021917,2]
[385724956,1757994639801,-500.0,0.00021917,2]
[385724957,1757994639810,-500.0,0.00021917,2]
[385724959,1757994639924,-597.9102473,0.00021917,2]
[385724960,1757994639934,-500.0,0.00021917,2]
[385724961,1757994639943,-500.0,0.00021917,2]
[385724962,1757994639953,-500.0,0.00021917,2]
[385724963,1757994639962,-500.0,0.00021917,2]
[385724964,1757994639971,-522.86105062,0.00021917,2]
[385724965,1757994639981,-480.0,0.00021917,2]
[385724966,1757994639994,-151.0,0.00021917,2]
[385724967,1757994640004,-484.15126909,0.00021917,2]
[385724968,1757994640013,-482.35042784,0.00021917,2]
[385724969,1757994640022,-483.72614278,0.00021917,2]
[385724970,1757994640031,-482.98219597,0.00021917,2]
[385724971,1757994640040,-486.57532228,0.00021917,2]
[385724972,1757994640049,-480.0,0.00021917,2]
[385724973,1757994640058,-480.0,0.00021917,2]
[385724974,1757994640068,-385.03105187,0.00021917,2]
[385724975,1757994640077,-439.9465183,0.00021917,2]
[385724976,1757994640087,-480.0,0.00021917,2]
[385724977,1757994640096,-480.0,0.00021917,2]
[385724978,1757994640105,-480.0,0.00021917,2]
[385724979,1757994640115,-466.35324129,0.00021917,2]
[385724980,1757994640124,-480.0,0.00021917,2]
[385724981,1757994640133,-489.40077961,0.00021917,2]
[385724982,1757994640142,-151.0,0.00021917,2]
[385724983,1757994640151,-480.0,0.00021917,2]
[385724984,1757994640160,-480.0,0.00021917,2]
[385724985,1757994640170,-480.0,0.00021917,2]
[385724986,1757994640179,-480.0,0.00021917,2]
[385724987,1757994640189,-480.0,0.00021917,2]
[385724988,1757994640198,-480.0,0.00021917,2]
[385724989,1757994640207,-485.4358921,0.00021917,2]
[385724990,1757994640216,-494.87741621,0.00021917,2]
[385724991,1757994640226,-480.0,0.00021917,2]
[385724992,1757994640235,-480.0,0.00021917,2]
[385724993,1757994640244,-155.688121,0.00021917,2]
[385724994,1757994640253,-480.0,0.00021917,2]
[385724995,1757994640262,-151.0,0.00021917,2]
[385724996,1757994640272,-480.0,0.00021917,2]
[385724997,1757994640281,-480.0,0.00021917,2]
[385724998,1757994640290,-314.68369324,0.00021917,2]
[385724999,1757994640299,-480.0,0.00021917,2]
[385725000,1757994640308,-480.0,0.00021917,2]
[385725001,1757994640317,-481.4,0.00021917,2]
[385725002,1757994640326,-468.23867986,0.00021917,2]
[385725003,1757994640335,-480.0,0.00021917,2]
[385725004,1757994640344,-470.89037462,0.00021917,2]
[385725005,1757994640354,-500.0,0.00021917,2]
[385725006,1757994640363,-500.0,0.00021917,2]
[385725008,1757994640372,-500.0,0.00021917,2]
[385725010,1757994640381,-500.0,0.00021917,2]
[385725012,1757994640391,-500.0,0.00021917,2]
[385725013,1757994640400,-288.60303952,0.00021917,2]
[385725014,1757994640409,-153.442791,0.00021917,2]
[385725015,1757994640418,-169.75627393,0.00021917,2]
[385725016,1757994640427,-151.0,0.00021917,2]
[385725017,1757994640436,-480.0,0.00021917,2]
[385725018,1757994640445,-468.77117198,0.00021917,2]
[385725019,1757994640454,-480.0,0.00021917,2]
[385725020,1757994640463,-467.70068758,0.00021917,2]
[385725021,1757994640472,-480.0,0.00021917,2]
[385725022,1757994640481,-251.6631,0.00021917,2]
[385725023,1757994640490,-480.0,0.00021917,2]
[385725024,1757994640499,-488.54173839,0.00021917,2]
[385725025,1757994640508,-472.34677947,0.00021917,2]
[385725026,1757994640517,-480.0,0.00021917,2]
[385725027,1757994640526,-480.0,0.00021917,2]
[385725028,1757994640535,-151.0,0.00021917,2]
[385725029,1757994640544,-489.02442764,0.00021917,2]
[385725030,1757994640553,-151.0,0.00021917,2]
[385725031,1757994640562,-480.0,0.00021917,2]
[385725032,1757994640571,-151.0,0.00021917,2]
[385725033,1757994640580,-151.0,0.00021917,2]
[385725034,1757994640590,-480.0,0.00021917,2]
[385725035,1757994640599,-480.0,0.00021917,2]
[385725036,1757994640608,-480.0,0.00021917,2]
[385725037,1757994640617,-480.0,0.00021917,2]
[385725038,1757994640626,-482.61081769,0.00021917,2]
[385725039,1757994640635,-465.67267672,0.00021917,2]
[385725040,1757994640644,-498.61244455,0.00021917,2]
[385725041,1757994640653,-472.05069032,0.00021917,2]
[385725042,1757994640662,-584.37024212,0.00021917,2]
[385725043,1757994640671,-463.21920225,0.00021917,2]
[385725044,1757994640680,-480.0,0.00021917,2]
[385725045,1757994640690,-480.0,0.00021917,2]
[385725046,1757994640699,-480.0,0.00021917,2]
[385725047,1757994640708,-464.89829515,0.00021917,2]
[385725048,1757994640718,-1009.19979243,0.00021917,2]
[385725049,1757994640727,-480.0,0.00021917,2]
[385725050,1757994640736,-151.0,0.00021917,2]
[385725051,1757994640746,-503.46878029,0.00021917,2]
[385725052,1757994640755,-151.0,0.00021917,2]
[385725053,1757994640765,-467.09798883,0.00021917,2]
[385725054,1757994640774,-485.14664405,0.00021917,2]
[385725055,1757994640783,-151.0,0.00021917,2]
[385725056,1757994640793,-471.63088822,0.00021917,2]
[385725057,1757994640804,-482.49795421,0.00021917,2]
[385725058,1757994640816,-151.0,0.00021917,2]
[385725059,1757994640829,-465.11570822,0.00021917,2]
[385725060,1757994640839,-468.02304665,0.00021917,2]
[385725061,1757994640848,-466.31683431,0.00021917,2]
[385725062,1757994640859,-486.83389113,0.00021917,2]
[385725063,1757994640869,-467.45736426,0.00021917,2]
[385725064,1757994640880,-480.0,0.00021917,2]
[385725065,1757994640889,-486.7455634,0.00021917,2]
[385725066,1757994640900,-485.95709016,0.00021917,2]
[385725067,1757994640910,-488.05780485,0.00021917,2]
[385725068,1757994640919,-407.04400014,0.00021917,2]
[385725069,1757994640928,-466.61298318,0.00021917,2]
[385725070,1757994640937,-480.0,0.00021917,2]
[385725071,1757994640946,-464.61979719,0.00021917,2]
[385725072,1757994640956,-480.0,0.00021917,2]
[385725073,1757994640965,-468.97165775,0.00021917,2]
[385725074,1757994640974,-492.93845048,0.00021917,2]
[385725075,1757994640982,-480.0,0.00021917,2]
[385725076,1757994640992,-159.808153,0.00021917,2]
[385725077,1757994641003,-480.0,0.00021917,2]
[385725078,1757994641012,-480.0,0.00021917,2]
[385725079,1757994641022,-482.20539499,0.00021917,2]
[385725080,1757994641031,-480.0,0.00021917,2]
[385725081,1757994641040,-480.0,0.00021917,2]
[385725082,1757994641048,-480.0,0.00021917,2]
[385725083,1757994641058,-471.28859209,0.00021917,2]
[385725084,1757994641067,-543.24401079,0.00021917,2]
[385725085,1757994641076,-463.0992326,0.00021917,2]
[385725086,1757994641087,-472.11574113,0.00021917,2]
[385725087,1757994641102,-465.28226658,0.00021917,2]
[385725088,1757994641115,-575.14382805,0.00021917,2]
[385725089,1757994641123,-480.0,0.00021917,2]
[385725090,1757994641133,-480.0,0.00021917,2]
[385725091,1757994641143,-462.25045267,0.00021917,2]
[385725092,1757994641152,-480.0,0.00021917,2]
[385725093,1757994641162,-462.23652611,0.00021917,2]
[385725094,1757994641171,-480.0,0.00021917,2]
[385725095,1757994641180,-480.0,0.00021917,2]
[385725096,1757994641189,-479.36328785,0.00021917,2]
[385725097,1757994641199,-480.0,0.00021917,2]
[385725098,1757994641208,-480.0,0.00021917,2]
[385725099,1757994641217,-480.0,0.00021917,2]
[385725100,1757994641227,-473.37175771,0.00021917,2]
[385725101,1757994641236,-480.0,0.00021917,2]
[385725102,1757994641245,-493.3445083,0.00021917,2]
[385725103,1757994641254,-480.0,0.00021917,2]
[385725104,1757994641263,-466.05891538,0.00021917,2]
[385725105,1757994641273,-151.0,0.00021917,2]
[385725106,1757994641282,-151.0,0.00021917,2]
[385725107,1757994641291,-151.0,0.00021917,2]
[385725108,1757994641300,-480.0,0.00021917,2]
[385725109,1757994641309,-480.0,0.00021917,2]
[385725110,1757994641318,-470.00049215,0.00021917,2]
[385725111,1757994641328,-468.67188597,0.00021917,2]
[385725112,1757994641336,-466.42925234,0.00021917,2]
[385725113,1757994641346,-480.0,0.00021917,2]
[385725114,1757994641355,-468.1404956,0.00021917,2]
[385725115,1757994641364,-473.37598234,0.00021917,2]
[385725116,1757994641375,-462.09653045,0.00021917,2]
[385725117,1757994641387,-480.0,0.00021917,2]
[385725118,1757994641396,-480.0,0.00021917,2]
[385725119,1757994641405,-467.08190753,0.00021917,2]
[385725120,1757994641414,-151.0,0.00021917,2]
[385725121,1757994641423,-151.0,0.00021917,2]
[385725122,1757994641432,-480.0,0.00021917,2]
[385725123,1757994641441,-462.99680815,0.00021917,2]
[385725124,1757994641450,-480.0,0.00021917,2]
[385725125,1757994641459,-480.0,0.00021917,2]
[385725126,1757994641469,-480.0,0.00021917,2]
[385725127,1757994641478,-151.0,0.00021917,2]
[385725128,1757994641488,-480.0,0.00021917,2]
[385725129,1757994641497,-462.78029667,0.00021917,2]
[385725130,1757994641506,-462.19500077,0.00021917,2]
[385725131,1757994641515,-480.0,0.00021917,2]
[385725132,1757994641524,-480.0,0.00021917,2]
[385725133,1757994641533,-480.0,0.00021917,2]
[385725134,1757994641542,-469.24373776,0.00021917,2]
[385725135,1757994641551,-537.47889582,0.00021917,2]
[385725136,1757994641560,-586.90471744,0.00021917,2]
[385725137,1757994641569,-480.0,0.00021917,2]
[385725138,1757994641578,-467.08533644,0.00021917,2]
[385725139,1757994641587,-461.10083384,0.00021917,2]
[385725140,1757994641596,-151.0,0.00021917,2]
[385725141,1757994641606,-480.0,0.00021917,2]
[385725142,1757994641615,-460.77305998,0.00021917,2]
[385725143,1757994641624,-151.0,0.00021917,2]
[385725144,1757994641633,-480.0,0.00021917,2]
[385725145,1757994641642,-480.0,0.00021917,2]
[385725146,1757994641651,-202.442081,0.00021917,2]
[385725147,1757994641660,-1472.67,0.00021917,2]
[385725148,1757994641670,-480.0,0.00021917,2]
[385725149,1757994641678,-480.0,0.00021917,2]
[385725150,1757994641687,-462.99820776,0.00021917,2]
[385725151,1757994641696,-480.0,0.00021917,2]
[385725152,1757994641706,-480.0,0.00021917,2]
[385725153,1757994641714,-480.0,0.00021917,2]
[385725154,1757994641724,-480.0,0.00021917,2]
[385725155,1757994641735,-480.0,0.00021917,2]
[385725156,1757994641745,-480.0,0.00021917,2]
[385725157,1757994641754,-569.43925677,0.00021917,2]
[385725158,1757994641763,-480.0,0.00021917,2]
[385725159,1757994641772,-191.600975,0.00021917,2]
[385725160,1757994641781,-191.600975,0.00021917,2]
[385725161,1757994641790,-469.90889622,0.00021917,2]
[385725162,1757994641799,-467.46905621,0.00021917,2]
[385725163,1757994641807,-191.600975,0.00021917,2]
[385725164,1757994641818,-191.600975,0.00021917,2]
[385725165,1757994641829,-485.74591738,0.00021917,2]
[385725166,1757994641838,-480.0,0.00021917,2]
[385725167,1757994641847,-480.0,0.00021917,2]
[385725168,1757994641857,-324.1074478,0.00021917,2]
[385725169,1757994641867,-450.24233419,0.00021917,2]
[385725170,1757994641876,-480.0,0.00021917,2]
[385725171,1757994641885,-502.74,0.00021917,2]
[385725172,1757994641896,-480.0,0.00021917,2]
[385725173,1757994641906,-469.6489429,0.00021917,2]
[385725174,1757994641915,-484.68297499,0.00021917,2]
[385725175,1757994641924,-480.0,0.00021917,2]
[385725176,1757994641933,-480.0,0.00021917,2]
[385725177,1757994641944,-432.86391495,0.00021917,2]
[385725178,1757994641953,-480.0,0.00021917,2]
[385725179,1757994641963,-480.0,0.00021917,2]
[385725180,1757994641972,-480.0,0.00021917,2]
[385725181,1757994641983,-480.0,0.00021917,2]
[385725182,1757994641993,-180.534982,0.00021917,2]
[385725183,1757994642004,-480.0,0.00021917,2]
[385725184,1757994642014,-174.217381,0.00021917,2]
[385725185,1757994642023,-174.217381,0.00021917,2]
[385725186,1757994642032,-174.217381,0.00021917,2]
[385725187,1757994642041,-480.0,0.00021917,2]
[385725188,1757994642050,-487.07935437,0.00021917,2]
[385725189,1757994642060,-480.0,0.00021917,2]
[385725190,1757994642077,-174.217381,0.00021917,2]
[385725191,1757994642175,-480.0,0.00021917,2]
[385725192,1757994642186,-442.36512865,0.00021917,2]
[385725193,1757994642195,-480.0,0.00021917,2]
[385725194,1757994642205,-480.0,0.00021917,2]
[385725195,1757994642214,-480.0,0.00021917,2]
[385725196,1757994642223,-151.0,0.00021917,2]
[385725197,1757994642232,-480.0,0.00021917,2]
[385725198,1757994642242,-461.7460389,0.00021917,2]
[385725199,1757994642251,-480.0,0.00021917,2]
[385725200,1757994642260,-480.0,0.00021917,2]
[385725201,1757994642269,-463.9029876,0.00021917,2]
[385725202,1757994642278,-464.48698324,0.00021917,2]
[385725203,1757994642288,-480.0,0.00021917,2]
[385725204,1757994642297,-480.0,0.00021917,2]
[385725205,1757994642306,-465.15456973,0.00021917,2]
[385725206,1757994642316,-480.0,0.00021917,2]
[385725207,1757994642326,-480.0,0.00021917,2]
[385725208,1757994642336,-480.0,0.00021917,2]
[385725209,1757994642347,-480.0,0.00021917,2]
[385725210,1757994642357,-471.64633302,0.00021917,2]
[385725211,1757994642367,-480.0,0.00021917,2]
[385725212,1757994642376,-500.0,0.00021917,2]
[385725213,1757994642386,-243.18922283,0.00021917,2]
[385725214,1757994642395,-480.0,0.00021917,2]
[385725215,1757994642404,-204.700538,0.00021917,2]
[385725216,1757994642414,-480.0,0.00021917,2]
[385725217,1757994642423,-434.41094054,0.00021917,2]
[385725218,1757994642432,-874.31,0.00021917,2]
[385725219,1757994642441,-463.00077379,0.00021917,2]
[385725220,1757994642450,-151.0,0.00021917,2]
[385725221,1757994642459,-151.0,0.00021917,2]
[385725222,1757994642468,-480.0,0.00021917,2]
[385725223,1757994642477,-480.0,0.00021917,2]
[385725224,1757994642486,-480.0,0.00021917,2]
[385725225,1757994642496,-490.23,0.00021917,2]
[385725226,1757994642506,-480.0,0.00021917,2]
[385725227,1757994642515,-151.0,0.00021917,2]
[385725228,1757994642524,-151.876733,0.00021917,2]
[385725229,1757994642533,-509.10490172,0.00021917,2]
[385725230,1757994642542,-480.0,0.00021917,2]
[385725231,1757994642551,-155.361001,0.00021917,2]
[385725232,1757994642560,-151.0,0.00021917,2]
[385725233,1757994642590,-189.895693,0.00021917,2]
[385725234,1757994642599,-480.0,0.00021917,2]
[385725235,1757994642608,-156.148166,0.00021917,2]
[385725236,1757994642617,-480.0,0.00021917,2]
[385725237,1757994642627,-462.64317986,0.00021917,2]
[385725238,1757994642636,-151.0,0.00021917,2]
[385725239,1757994642645,-151.0,0.00021917,2]
[385725240,1757994642654,-480.0,0.00021917,2]
[385725241,1757994642664,-487.5404281,0.00021917,2]
[385725242,1757994642673,-151.0,0.00021917,2]
[385725243,1757994642683,-480.0,0.00021917,2]
[385725244,1757994642693,-500.0,0.00021917,2]
[385725245,1757994642704,-480.0,0.00021917,2]
[385725246,1757994642713,-462.402542,0.00021917,2]
[385725247,1757994642723,-480.0,0.00021917,2]
[385725248,1757994642732,-480.0,0.00021917,2]
[385725249,1757994642743,-464.12774049,0.00021917,2]
[385725250,1757994642752,-480.0,0.00021917,2]
[385725251,1757994642762,-480.0,0.00021917,2]
[385725252,1757994642772,-480.0,0.00021917,2]
[385725253,1757994642782,-465.17336725,0.00021917,2]
[385725254,1757994642791,-464.59230258,0.00021917,2]
[385725255,1757994642801,-480.0,0.00021917,2]
[385725256,1757994642811,-480.0,0.00021917,2]
[385725257,1757994642823,-480.0,0.00021917,2]
[385725258,1757994642832,-480.0,0.00021917,2]
[385725259,1757994642841,-480.0,0.00021917,2]
[385725260,1757994642850,-231.53961664,0.00021917,2]
[385725261,1757994642861,-462.68099676,0.00021917,2]
[385725262,1757994642870,-480.0,0.00021917,2]
[385725263,1757994642879,-480.0,0.00021917,2]
[385725264,1757994642889,-480.0,0.00021917,2]
[385725265,1757994642901,-175.768189,0.00021917,2]
[385725266,1757994642910,-477.92165499,0.00021917,2]
[385725267,1757994642920,-460.6560228,0.00021917,2]
[385725268,1757994642930,-480.0,0.00021917,2]
[385725269,1757994642939,-480.0,0.00021917,2]
[385725271,1757994642948,-480.0,0.00021917,2]
[385725273,1757994642959,-4164.1,0.00021917,2]
[385725277,1757994642969,-480.0,0.00021917,2]
[385725279,1757994642979,-480.0,0.00021917,2]
[385725280,1757994642988,-475.4143017,0.00021917,2]
[385725281,1757994642997,-530.43,0.00021917,2]
[385725282,1757994643006,-469.91662688,0.00021917,2]
[385725283,1757994643015,-462.29956393,0.00021917,2]
[385725284,1757994643025,-480.0,0.00021917,2]
[385725285,1757994643034,-576.84,0.00021917,2]
[385725286,1757994643043,-480.0,0.00021917,2]
[385725287,1757994643052,-480.0,0.00021917,2]
[385725288,1757994643062,-480.0,0.00021917,2]
[385725289,1757994643071,-462.612862,0.00021917,2]
[385725290,1757994643080,-487.62720452,0.00021917,2]
[385725291,1757994643090,-480.0,0.00021917,2]
[385725292,1757994643099,-480.0,0.00021917,2]
[385725293,1757994643108,-466.70728336,0.00021917,2]
[385725294,1757994643117,-480.0,0.00021917,2]
[385725295,1757994643127,-480.0,0.00021917,2]
[385725296,1757994643137,-480.0,0.00021917,2]
[385725297,1757994643146,-480.0,0.00021917,2]
[385725298,1757994643156,-462.51137773,0.00021917,2]
[385725299,1757994643166,-474.22941731,0.00021917,2]
[385725300,1757994643175,-480.0,0.00021917,2]
[385725301,1757994643184,-465.59263825,0.00021917,2]
[385725302,1757994643193,-480.0,0.00021917,2]
[385725303,1757994643202,-480.0,0.00021917,2]
[385725304,1757994643211,-464.5531419,0.00021917,2]
[385725305,1757994643220,-480.0,0.00021917,2]
[385725306,1757994643229,-151.0,0.00021917,2]
[385725307,1757994643238,-480.0,0.00021917,2]
[385725308,1757994643247,-480.0,0.00021917,2]
[385725309,1757994643255,-464.12343361,0.00021917,2]
[385725310,1757994643264,-469.82005669,0.00021917,2]
[385725311,1757994643273,-480.0,0.00021917,2]
[385725312,1757994643282,-480.0,0.00021917,2]
[385725313,1757994643291,-465.41495787,0.00021917,2]
[385725314,1757994643299,-470.11623041,0.00021917,2]
[385725315,1757994643308,-466.34238129,0.00021917,2]
[385725316,1757994643317,-462.82756429,0.00021917,2]
[385725317,1757994643326,-480.0,0.00021917,2]
[385725318,1757994643335,-151.0,0.00021917,2]
[385725319,1757994643344,-468.10708715,0.00021917,2]
[385725320,1757994643353,-482.61594293,0.00021917,2]
[385725321,1757994643362,-463.00955673,0.00021917,2]
[385725322,1757994643371,-466.22347238,0.00021917,2]
[385725323,1757994643380,-532.76158333,0.00021917,2]
[385725324,1757994643389,-589.37,0.00021917,2]
[385725325,1757994643398,-940.86,0.00021917,2]
[385725326,1757994643407,-480.0,0.00021917,2]
[385725327,1757994643416,-480.0,0.00021917,2]
[385725328,1757994643425,-480.0,0.00021917,2]
[385725329,1757994643434,-449.208965,0.00021918,2]
[385725330,1757994643443,-449.208965,0.00021918,2]
[385725331,1757994643453,-449.208965,0.00021918,2]
[385725332,1757994643462,-449.208965,0.00021918,2]
[385725333,1757994643471,-800.0,0.00021918,2]
[385725336,1757994643480,-800.0,0.00021918,2]
[385725338,1757994643489,-354.0,0.00021957,2]
[385725340,1757994643498,-500.0,0.00021973,2]
[385725341,1757994643508,-500.0,0.00021973,2]
[385725342,1757994643517,-501.13961535,0.00021973,2]
[385725343,1757994643526,-501.37024542,0.00021973,2]
[385725344,1757994643535,-500.81185211,0.00021973,2]
[385725345,1757994643543,-500.0,0.00021973,2]
[385725346,1757994643552,-631.12990426,0.00021973,2]
[385725347,1757994643562,-500.0,0.00021973,2]
[385725348,1757994643571,-500.0,0.00021973,2]
[385725349,1757994643580,-500.0,0.00021973,2]
[385725350,1757994643590,-501.94313271,0.00021973,2]
[385725351,1757994643599,-500.0,0.00021973,2]
[385725352,1757994643609,-962.9,0.00021991,2]
[385725353,1757994643619,-2029.99,0.00021999,2]
[385725354,1757994643628,-355.83135199,0.00022,2]
[385725355,1757994643637,-300.0,0.0002201,2]
[385725356,1757994643647,-154.738351,0.00022078,7]
[385725357,1757994643656,-155.445078,0.00022078,7]
[385725358,1757994643665,-151.0,0.00022078,7]
[385725359,1757994643675,-151.0,0.00022078,7]
[385725360,1757994643684,-151.0,0.00022078,7]
[385725361,1757994643694,-151.0,0.00022078,7]
[385725362,1757994643703,-732.48,0.000221,7]
[385725363,1757994643714,-8081.52,0.000221,7]
[385725364,1757994643723,-151.0,0.000221,7]
[385725365,1757994643733,-151.0,0.000221,7]
[385725366,1757994643742,-151.0,0.000221,7]
[385725367,1757994643751,-151.0,0.000221,7]
[385725368,1757994643760,-151.0,0.000221,7]
[385725369,1757994643770,-151.0,0.000221,7]
[385725370,1757994643787,-151.0,0.000221,7]
[385725371,1757994643796,-151.0,0.000221,7]
[385725372,1757994643805,-176.78055,0.000221,7]
[385725373,1757994643815,-151.0,0.000221,7]
[385725374,1757994643827,-151.0,0.000221,7]
[385725375,1757994643836,-151.0,0.000221,7]
[385725376,1757994643845,-191.600975,0.000221,7]
[385725377,1757994643854,-191.600975,0.000221,7]
[385725378,1757994643865,-191.600975,0.000221,7]
[385725379,1757994643874,-191.600975,0.000221,7]
[385725380,1757994643884,-174.217381,0.000221,7]
[385725381,1757994643896,-174.217381,0.000221,7]
[385725382,1757994643906,-174.217381,0.000221,7]
[385725383,1757994643916,-174.217381,0.000221,7]
[385725384,1757994643925,-151.0,0.000221,7]
[385725385,1757994643934,-151.0,0.000221,7]
[385725386,1757994643943,-228.049257,0.000221,7]
[385725387,1757994643953,-151.0,0.000221,7]
[385725388,1757994643962,-151.0,0.000221,7]
[385725389,1757994643971,-199.278391,0.000221,7]
[385725390,1757994643981,-151.0,0.000221,7]
[385725391,1757994643990,-450.0,0.00022147,2]
[385725392,1757994644000,-502.83507393,0.00022173,2]
[385725393,1757994644009,-500.68439844,0.00022173,2]
[385725394,1757994644018,-500.81658752,0.00022173,2]